[Event "Titled Tuesday Blitz October 12 2021"]
[White "Warmerdam, Max"]
[Black "Vivas Zamora, Fabian Ernesto"]
[WhiteFideId "1048104"]
[BlackFideId "3902480"]
[WhiteElo "2537"]
[BlackElo "1966"]
[Result "1-0"]
[Round "01"]
[TimeControl "180+1"]
[Date "2021.10.12"]
[WhiteClock "0:02:34"]
[BlackClock "0:00:04"]

1. e4 {[%clk 0:03:00]}  e5 {[%clk 0:02:57]} 2. Nf3 {[%clk 0:03:01]}  Nc6 {[%clk 0:02:57]} 3. Bb5 {[%clk 0:03:01]}  f5 {[%clk 0:02:56]} 4. d3 {[%clk 0:03:01]}  fxe4 {[%clk 0:02:56]} 5. dxe4 {[%clk 0:03:02]}  Nf6 {[%clk 0:02:56]} 6. O-O {[%clk 0:03:02]}  Bc5 {[%clk 0:02:55]} 7. Bxc6 {[%clk 0:03:03]}  bxc6 {[%clk 0:02:54]} 8. Nxe5 {[%clk 0:03:03]}  O-O {[%clk 0:02:53]} 9. Nc3 {[%clk 0:03:04]}  d6 {[%clk 0:02:51]} 10. Nd3 {[%clk 0:03:03]}  Bd4 {[%clk 0:02:46]} 11. Qe1 {[%clk 0:03:04]}  Qe8 {[%clk 0:02:37]} 12. Be3 {[%clk 0:03:04]}  Bxc3 {[%clk 0:02:30]} 13. Qxc3 {[%clk 0:03:04]}  Qxe4 {[%clk 0:02:25]} 14. Rfe1 {[%clk 0:03:05]}  Qa4 {[%clk 0:01:52]} 15. a3 {[%clk 0:03:04]}  Nd5 {[%clk 0:01:39]} 16. Qd2 {[%clk 0:02:55]}  Nxe3 {[%clk 0:01:37]} 17. Rxe3 {[%clk 0:02:54]}  Bf5 {[%clk 0:01:28]} 18. Rae1 {[%clk 0:02:55]}  c5 {[%clk 0:01:20]} 19. g3 {[%clk 0:02:51]}  Rae8 {[%clk 0:01:19]} 20. Nf4 {[%clk 0:02:50]}  Rxe3 {[%clk 0:01:09]} 21. Rxe3 {[%clk 0:02:51]}  Qd4 {[%clk 0:01:01]} 22. Qc1 {[%clk 0:02:41]}  h6 {[%clk 0:00:43]} 23. c3 {[%clk 0:02:38]}  Qf6 {[%clk 0:00:36]} 24. Qe1 {[%clk 0:02:37]}  Bd7 {[%clk 0:00:12]} 25. Re7 {[%clk 0:02:33]}  Bc6 {[%clk 0:00:06]} 26. Qe6+ {[%clk 0:02:31]}  Qxe6 {[%clk 0:00:06]} 27. Nxe6 {[%clk 0:02:32]}  Rf7 {[%clk 0:00:07]} 28. Rxf7 {[%clk 0:02:33]}  Kxf7 {[%clk 0:00:07]} 29. Nd8+ {[%clk 0:02:34]}  Kf6 {[%clk 0:00:04]} 30. Nxc6 {[%clk 0:02:34]} 1-0


[Site "https://www.chess.com"]

[Event "Titled Tuesday Blitz October 12 2021"]
[White "Yordanov, Nikolay Plamenov"]
[Black "Kozak, Adam"]
[WhiteFideId "2907445"]
[BlackFideId "753246"]
[WhiteElo "2248"]
[BlackElo "2448"]
[Result "0-1"]
[Round "01"]
[TimeControl "180+1"]
[Date "2021.10.12"]
[WhiteClock "0:00:10"]
[BlackClock "0:00:07"]

1. d4 {[%clk 0:03:00]}  d5 {[%clk 0:02:47]} 2. Bf4 {[%clk 0:03:00]}  c5 {[%clk 0:02:45]} 3. e3 {[%clk 0:03:00]}  Nc6 {[%clk 0:02:35]} 4. c3 {[%clk 0:03:01]}  Qb6 {[%clk 0:02:00]} 5. b3 {[%clk 0:03:00]}  Nf6 {[%clk 0:01:57]} 6. Bd3 {[%clk 0:03:00]}  Bg4 {[%clk 0:01:50]} 7. Nf3 {[%clk 0:03:00]}  e6 {[%clk 0:01:46]} 8. O-O {[%clk 0:03:01]}  Bh5 {[%clk 0:01:40]} 9. h3 {[%clk 0:02:58]}  Bg6 {[%clk 0:01:30]} 10. Bxg6 {[%clk 0:02:57]}  hxg6 {[%clk 0:01:31]} 11. Nbd2 {[%clk 0:02:58]}  Rd8 {[%clk 0:01:19]} 12. a4 {[%clk 0:02:24]}  cxd4 {[%clk 0:01:13]} 13. exd4 {[%clk 0:02:24]}  Bd6 {[%clk 0:01:12]} 14. Bxd6 {[%clk 0:02:23]}  Rxd6 {[%clk 0:01:13]} 15. Re1 {[%clk 0:02:21]}  Qc7 {[%clk 0:00:58]} 16. b4 {[%clk 0:02:14]}  Ne7 {[%clk 0:00:52]} 17. Rc1 {[%clk 0:02:03]}  Nf5 {[%clk 0:00:42]} 18. a5 {[%clk 0:01:59]}  Qd8 {[%clk 0:00:37]} 19. Ne5 {[%clk 0:01:51]}  O-O {[%clk 0:00:34]} 20. Qe2 {[%clk 0:01:41]}  Nd7 {[%clk 0:00:29]} 21. Ndf3 {[%clk 0:01:36]}  Nxe5 {[%clk 0:00:20]} 22. Nxe5 {[%clk 0:01:35]}  Qc7 {[%clk 0:00:20]} 23. g4 {[%clk 0:01:33]}  Ne7 {[%clk 0:00:20]} 24. Qd3 {[%clk 0:01:29]}  Nc6 {[%clk 0:00:19]} 25. Nf3 {[%clk 0:01:20]}  b6 {[%clk 0:00:18]} 26. axb6 {[%clk 0:01:19]}  axb6 {[%clk 0:00:19]} 27. Ng5 {[%clk 0:01:19]}  Qe7 {[%clk 0:00:17]} 28. f4 {[%clk 0:01:13]}  Rc8 {[%clk 0:00:17]} 29. Qg3 {[%clk 0:01:13]}  f6 {[%clk 0:00:16]} 30. Nf3 {[%clk 0:01:11]}  Nd8 {[%clk 0:00:11]} 31. Re3 {[%clk 0:01:06]}  Rdc6 {[%clk 0:00:10]} 32. Nh4 {[%clk 0:01:06]}  Qe8 {[%clk 0:00:10]} 33. Qe1 {[%clk 0:01:05]}  Qf7 {[%clk 0:00:10]} 34. Rc2 {[%clk 0:01:00]}  Nb7 {[%clk 0:00:09]} 35. Rce2 {[%clk 0:01:00]}  Nd6 {[%clk 0:00:09]} 36. Rxe6 {[%clk 0:00:52]}  Ne4 {[%clk 0:00:09]} 37. Rxc6 {[%clk 0:00:52]}  Rxc6 {[%clk 0:00:10]} 38. Re3 {[%clk 0:00:50]}  Kh7 {[%clk 0:00:09]} 39. f5 {[%clk 0:00:45]}  g5 {[%clk 0:00:09]} 40. Ng6 {[%clk 0:00:45]}  Qc7 {[%clk 0:00:09]} 41. Nf8+ {[%clk 0:00:30]}  Kg8 {[%clk 0:00:08]} 42. Ne6 {[%clk 0:00:31]}  Qc8 {[%clk 0:00:07]} 43. Rxe4 {[%clk 0:00:14]}  dxe4 {[%clk 0:00:07]} 44. Qxe4 {[%clk 0:00:13]}  Rxc3 {[%clk 0:00:07]} 45. Qd5 {[%clk 0:00:12]}  Rc1+ {[%clk 0:00:07]} 46. Kh2 {[%clk 0:00:11]}  Qc2+ {[%clk 0:00:07]} 47. Qg2 {[%clk 0:00:12]}  Qxg2+ {[%clk 0:00:03]} 48. Kxg2 {[%clk 0:00:13]}  Rb1 {[%clk 0:00:03]} 49. d5 {[%clk 0:00:12]}  Kf7 {[%clk 0:00:03]} 50. Kf3 {[%clk 0:00:11]}  Rxb4 {[%clk 0:00:02]} 51. d6 {[%clk 0:00:12]}  Ke8 {[%clk 0:00:03]} 52. Nxg7+ {[%clk 0:00:11]}  Kd7 {[%clk 0:00:03]} 53. Nh5 {[%clk 0:00:12]}  Rb3+ {[%clk 0:00:03]} 54. Kg2 {[%clk 0:00:11]}  Kxd6 {[%clk 0:00:03]} 55. Nxf6 {[%clk 0:00:11]}  b5 {[%clk 0:00:03]} 56. Ne4+ {[%clk 0:00:12]}  Ke5 {[%clk 0:00:03]} 57. Nxg5 {[%clk 0:00:12]}  b4 {[%clk 0:00:04]} 58. Nf3+ {[%clk 0:00:12]}  Kf4 {[%clk 0:00:04]} 59. Ng1 {[%clk 0:00:12]}  Rg3+ {[%clk 0:00:04]} 60. Kf2 {[%clk 0:00:12]}  Ra3 {[%clk 0:00:05]} 61. Ne2+ {[%clk 0:00:12]}  Ke5 {[%clk 0:00:04]} 62. h4 {[%clk 0:00:12]}  b3 {[%clk 0:00:05]} 63. Nc1 {[%clk 0:00:09]}  b2 {[%clk 0:00:05]} 64. Nd3+ {[%clk 0:00:09]}  Rxd3 {[%clk 0:00:05]} 65. h5 {[%clk 0:00:10]}  b1=Q {[%clk 0:00:06]} 66. h6 {[%clk 0:00:10]}  Qc2+ {[%clk 0:00:06]} 67. Ke1 {[%clk 0:00:10]}  Rd1# {[%clk 0:00:07]} 0-1


[Site "https://www.chess.com"]

[Event "Titled Tuesday Blitz October 12 2021"]
[White "Bortnyk, Olexandr"]
[Black "Sydoryka, Vladyslav"]
[WhiteFideId "14120828"]
[BlackFideId "14145928"]
[WhiteElo "2723"]
[BlackElo "2282"]
[Result "1-0"]
[Round "02"]
[TimeControl "180+1"]
[Date "2021.10.12"]
[WhiteClock "0:00:03"]
[BlackClock "0:00:01"]

1. e4 {[%clk 0:03:00]}  c6 {[%clk 0:02:59]} 2. d4 {[%clk 0:02:58]}  d5 {[%clk 0:03:00]} 3. Nc3 {[%clk 0:02:59]}  dxe4 {[%clk 0:03:00]} 4. Nxe4 {[%clk 0:02:59]}  Bf5 {[%clk 0:03:00]} 5. Ng3 {[%clk 0:02:52]}  Bg6 {[%clk 0:03:00]} 6. h4 {[%clk 0:02:51]}  h6 {[%clk 0:02:58]} 7. Nh3 {[%clk 0:02:52]}  e6 {[%clk 0:02:58]} 8. Nf4 {[%clk 0:02:52]}  Bh7 {[%clk 0:02:58]} 9. Nfh5 {[%clk 0:02:53]}  Nd7 {[%clk 0:02:55]} 10. c3 {[%clk 0:02:53]}  Ngf6 {[%clk 0:02:55]} 11. Bc4 {[%clk 0:02:53]}  Nxh5 {[%clk 0:02:55]} 12. Nxh5 {[%clk 0:02:54]}  Nf6 {[%clk 0:02:55]} 13. Bf4 {[%clk 0:02:55]}  Nxh5 {[%clk 0:02:52]} 14. Qxh5 {[%clk 0:02:56]}  Bd6 {[%clk 0:02:52]} 15. Be5 {[%clk 0:02:55]}  Bxe5 {[%clk 0:02:33]} 16. Qxe5 {[%clk 0:02:56]}  Qf6 {[%clk 0:02:32]} 17. Qc7 {[%clk 0:02:52]}  Qe7 {[%clk 0:02:31]} 18. Qg3 {[%clk 0:02:52]}  O-O {[%clk 0:02:28]} 19. O-O {[%clk 0:02:52]}  Rad8 {[%clk 0:02:14]} 20. Rfe1 {[%clk 0:02:52]}  Qd6 {[%clk 0:02:14]} 21. Re5 {[%clk 0:02:51]}  b5 {[%clk 0:01:45]} 22. Bb3 {[%clk 0:02:51]}  b4 {[%clk 0:01:44]} 23. Rae1 {[%clk 0:02:50]}  bxc3 {[%clk 0:01:43]} 24. bxc3 {[%clk 0:02:50]}  Rc8 {[%clk 0:01:38]} 25. Qe3 {[%clk 0:02:09]}  Rfd8 {[%clk 0:01:35]} 26. Rc5 {[%clk 0:02:06]}  Rb8 {[%clk 0:01:26]} 27. Qe5 {[%clk 0:01:58]}  Qd7 {[%clk 0:01:21]} 28. Ba4 {[%clk 0:01:49]}  Rb6 {[%clk 0:01:15]} 29. Re3 {[%clk 0:01:48]}  Qe7 {[%clk 0:00:57]} 30. Qf4 {[%clk 0:01:40]}  Rc8 {[%clk 0:00:56]} 31. Rg3 {[%clk 0:01:38]}  Bg6 {[%clk 0:00:54]} 32. Kh2 {[%clk 0:01:22]}  h5 {[%clk 0:00:51]} 33. Rcg5 {[%clk 0:01:11]}  c5 {[%clk 0:00:35]} 34. Bc2 {[%clk 0:01:06]}  Qf6 {[%clk 0:00:33]} 35. Qxf6 {[%clk 0:01:02]}  gxf6 {[%clk 0:00:34]} 36. Rxh5 {[%clk 0:01:03]}  f5 {[%clk 0:00:33]} 37. Rhg5 {[%clk 0:00:57]}  cxd4 {[%clk 0:00:33]} 38. h5 {[%clk 0:00:56]}  Rxc3 {[%clk 0:00:31]} 39. Rxc3 {[%clk 0:00:56]}  dxc3 {[%clk 0:00:30]} 40. hxg6 {[%clk 0:00:56]}  Rb2 {[%clk 0:00:26]} 41. gxf7+ {[%clk 0:00:07]}  Kxf7 {[%clk 0:00:27]} 42. Bxf5 {[%clk 0:00:06]}  Kf6 {[%clk 0:00:23]} 43. Rg3 {[%clk 0:00:04]}  exf5 {[%clk 0:00:19]} 44. Rxc3 {[%clk 0:00:05]}  Rxa2 {[%clk 0:00:18]} 45. f4 {[%clk 0:00:04]}  a5 {[%clk 0:00:17]} 46. Rc6+ {[%clk 0:00:04]}  Kg7 {[%clk 0:00:16]} 47. Kh3 {[%clk 0:00:05]}  a4 {[%clk 0:00:16]} 48. Ra6 {[%clk 0:00:04]}  Kf7 {[%clk 0:00:15]} 49. g3 {[%clk 0:00:04]}  a3 {[%clk 0:00:05]} 50. Kh4 {[%clk 0:00:05]}  Ra1 {[%clk 0:00:04]} 51. Kg5 {[%clk 0:00:06]}  a2 {[%clk 0:00:04]} 52. Kxf5 {[%clk 0:00:06]}  Rg1 {[%clk 0:00:05]} 53. Ra7+ {[%clk 0:00:06]}  Kf8 {[%clk 0:00:05]} 54. Rxa2 {[%clk 0:00:06]}  Rxg3 {[%clk 0:00:05]} 55. Kf6 {[%clk 0:00:07]}  Kg8 {[%clk 0:00:04]} 56. Ra8+ {[%clk 0:00:06]}  Kh7 {[%clk 0:00:04]} 57. f5 {[%clk 0:00:06]}  Rb3 {[%clk 0:00:03]} 58. Re8 {[%clk 0:00:06]}  Rb6+ {[%clk 0:00:02]} 59. Re6 {[%clk 0:00:07]}  Rb5 {[%clk 0:00:02]} 60. Re5 {[%clk 0:00:03]}  Rb6+ {[%clk 0:00:02]} 61. Kf7 {[%clk 0:00:04]}  Rb7+ {[%clk 0:00:01]} 62. Re7 {[%clk 0:00:04]}  Rb5 {[%clk 0:00:01]} 63. f6 {[%clk 0:00:04]}  Rb6 {[%clk 0:00:02]} 64. Rd7 {[%clk 0:00:04]}  Kh6 {[%clk 0:00:01]} 65. Ke7 {[%clk 0:00:02]}  Kg6 {[%clk 0:00:01]} 66. f7 {[%clk 0:00:02]}  Rb1 {[%clk 0:00:01]} 67. f8=Q {[%clk 0:00:03]} 1-0


[Site "https://www.chess.com"]

[Event "Titled Tuesday Blitz October 12 2021"]
[White "Gontcharov, Vladislav"]
[Black "Obregon, Andres Carlos"]
[WhiteFideId "4123492"]
[BlackFideId "111724"]
[WhiteElo "2503"]
[BlackElo "2572"]
[Result "0-1"]
[Round "02"]
[TimeControl "180+1"]
[Date "2021.10.12"]
[WhiteClock "0:00:01"]
[BlackClock "0:00:43"]

1. e4 {[%clk 0:03:00]}  c5 {[%clk 0:02:57]} 2. Nf3 {[%clk 0:02:59]}  Nc6 {[%clk 0:02:56]} 3. d4 {[%clk 0:03:00]}  cxd4 {[%clk 0:02:52]} 4. Nxd4 {[%clk 0:03:00]}  Nf6 {[%clk 0:02:48]} 5. Nc3 {[%clk 0:02:59]}  e5 {[%clk 0:02:45]} 6. Ndb5 {[%clk 0:02:59]}  d6 {[%clk 0:02:43]} 7. Bg5 {[%clk 0:02:58]}  a6 {[%clk 0:02:41]} 8. Na3 {[%clk 0:02:59]}  b5 {[%clk 0:02:38]} 9. Nd5 {[%clk 0:02:58]}  Be7 {[%clk 0:02:34]} 10. Bxf6 {[%clk 0:02:58]}  Bxf6 {[%clk 0:02:32]} 11. c4 {[%clk 0:02:58]}  b4 {[%clk 0:02:28]} 12. Nc2 {[%clk 0:02:57]}  a5 {[%clk 0:02:26]} 13. g3 {[%clk 0:02:56]}  O-O {[%clk 0:02:23]} 14. h4 {[%clk 0:02:54]}  Rb8 {[%clk 0:02:18]} 15. b3 {[%clk 0:02:53]}  Be6 {[%clk 0:02:14]} 16. Bh3 {[%clk 0:02:52]}  Be7 {[%clk 0:02:11]} 17. Kf1 {[%clk 0:02:49]}  Qd7 {[%clk 0:02:08]} 18. Kg2 {[%clk 0:02:48]}  Bd8 {[%clk 0:02:06]} 19. Qd3 {[%clk 0:02:35]}  Ne7 {[%clk 0:02:02]} 20. Nde3 {[%clk 0:02:27]}  Bb6 {[%clk 0:01:53]} 21. Rad1 {[%clk 0:02:05]}  Rbd8 {[%clk 0:01:44]} 22. a3 {[%clk 0:01:25]}  Bc5 {[%clk 0:01:37]} 23. axb4 {[%clk 0:01:20]}  axb4 {[%clk 0:01:38]} 24. Ra1 {[%clk 0:01:17]}  Bxh3+ {[%clk 0:01:36]} 25. Rxh3 {[%clk 0:01:16]}  f5 {[%clk 0:01:37]} 26. f3 {[%clk 0:00:55]}  f4 {[%clk 0:01:32]} 27. Nd5 {[%clk 0:00:53]}  fxg3 {[%clk 0:01:31]} 28. Rxg3 {[%clk 0:00:47]}  Ng6 {[%clk 0:01:23]} 29. Rg4 {[%clk 0:00:36]}  Rf7 {[%clk 0:01:02]} 30. h5 {[%clk 0:00:22]}  Nf8 {[%clk 0:01:00]} 31. Nce3 {[%clk 0:00:18]}  Ne6 {[%clk 0:00:49]} 32. Nf5 {[%clk 0:00:15]}  Kh8 {[%clk 0:00:49]} 33. Ra4 {[%clk 0:00:05]}  Rdf8 {[%clk 0:00:47]} 34. Qd1 {[%clk 0:00:01]}  Nd4 {[%clk 0:00:43]} 0-1


[Site "https://www.chess.com"]

[Event "Titled Tuesday Blitz October 12 2021"]
[White "Hansen, Eric"]
[Black "Rozen, Eytan"]
[WhiteFideId "2606771"]
[BlackFideId "2816750"]
[WhiteElo "2568"]
[BlackElo "2115"]
[Result "1-0"]
[Round "02"]
[TimeControl "180+1"]
[Date "2021.10.12"]
[WhiteClock "0:01:07"]
[BlackClock "0:00:03"]

1. Nf3 {[%clk 0:03:00]}  d5 {[%clk 0:02:56]} 2. d4 {[%clk 0:02:48]}  Nf6 {[%clk 0:02:53]} 3. c4 {[%clk 0:02:48]}  dxc4 {[%clk 0:02:52]} 4. e3 {[%clk 0:02:47]}  b5 {[%clk 0:02:51]} 5. a4 {[%clk 0:02:47]}  b4 {[%clk 0:02:51]} 6. Bxc4 {[%clk 0:02:47]}  e6 {[%clk 0:02:50]} 7. O-O {[%clk 0:02:47]}  Bb7 {[%clk 0:02:50]} 8. Nbd2 {[%clk 0:02:47]}  Be7 {[%clk 0:02:45]} 9. Qe2 {[%clk 0:02:46]}  c5 {[%clk 0:02:43]} 10. Bb5+ {[%clk 0:02:40]}  Nbd7 {[%clk 0:02:40]} 11. dxc5 {[%clk 0:02:40]}  Bxc5 {[%clk 0:02:32]} 12. Nb3 {[%clk 0:02:39]}  Be7 {[%clk 0:02:06]} 13. Rd1 {[%clk 0:02:33]}  Qc7 {[%clk 0:02:02]} 14. Bd2 {[%clk 0:02:20]}  O-O {[%clk 0:01:30]} 15. Rac1 {[%clk 0:02:16]}  Qb8 {[%clk 0:01:30]} 16. Na5 {[%clk 0:02:15]}  a6 {[%clk 0:01:09]} 17. Bc6 {[%clk 0:01:53]}  Bxc6 {[%clk 0:00:58]} 18. Nxc6 {[%clk 0:01:53]}  Qe8 {[%clk 0:00:57]} 19. a5 {[%clk 0:01:46]}  b3 {[%clk 0:00:52]} 20. Qc4 {[%clk 0:01:43]}  Nd5 {[%clk 0:00:31]} 21. e4 {[%clk 0:01:38]}  N5f6 {[%clk 0:00:26]} 22. Be3 {[%clk 0:01:33]}  Ng4 {[%clk 0:00:14]} 23. Nxe7+ {[%clk 0:01:29]}  Qxe7 {[%clk 0:00:15]} 24. Qc7 {[%clk 0:01:28]}  Rfd8 {[%clk 0:00:05]} 25. Bb6 {[%clk 0:01:19]}  Qe8 {[%clk 0:00:04]} 26. Qf4 {[%clk 0:01:14]}  Nxb6 {[%clk 0:00:03]} 27. axb6 {[%clk 0:01:14]}  Nf6 {[%clk 0:00:03]} 28. b7 {[%clk 0:01:10]}  Rab8 {[%clk 0:00:03]} 29. Rxd8 {[%clk 0:01:09]}  Qxd8 {[%clk 0:00:03]} 30. Qxb8 {[%clk 0:01:07]} 1-0


[Site "https://www.chess.com"]

[Event "Titled Tuesday Blitz October 12 2021"]
[White "Hnydiuk, Aleksander"]
[Black "Nakamura, Hikaru"]
[WhiteFideId "1109057"]
[BlackFideId "2016192"]
[WhiteElo "2374"]
[BlackElo "2884"]
[Result "0-1"]
[Round "02"]
[TimeControl "180+1"]
[Date "2021.10.12"]
[WhiteClock "0:00:01"]
[BlackClock "0:00:25"]

1. Nf3 {[%clk 0:03:00]}  g6 {[%clk 0:03:00]} 2. c4 {[%clk 0:03:00]}  Bg7 {[%clk 0:02:57]} 3. d4 {[%clk 0:03:00]}  d6 {[%clk 0:02:44]} 4. Nc3 {[%clk 0:02:57]}  Nf6 {[%clk 0:02:44]} 5. g3 {[%clk 0:02:57]}  Bd7 {[%clk 0:02:31]} 6. Bg2 {[%clk 0:02:56]}  Qc8 {[%clk 0:02:32]} 7. O-O {[%clk 0:02:51]}  O-O {[%clk 0:02:31]} 8. e4 {[%clk 0:02:50]}  Bg4 {[%clk 0:02:26]} 9. Be3 {[%clk 0:02:46]}  Nc6 {[%clk 0:02:13]} 10. Qd2 {[%clk 0:02:45]}  e5 {[%clk 0:02:05]} 11. d5 {[%clk 0:02:34]}  Ne7 {[%clk 0:01:55]} 12. c5 {[%clk 0:02:26]}  Bh3 {[%clk 0:01:35]} 13. Rac1 {[%clk 0:02:23]}  Bxg2 {[%clk 0:01:18]} 14. Kxg2 {[%clk 0:02:24]}  Qd7 {[%clk 0:01:18]} 15. h3 {[%clk 0:02:13]}  Rfc8 {[%clk 0:01:02]} 16. Qd3 {[%clk 0:02:10]}  a6 {[%clk 0:01:02]} 17. Rfd1 {[%clk 0:02:06]}  Ne8 {[%clk 0:01:02]} 18. b3 {[%clk 0:01:46]}  h6 {[%clk 0:00:59]} 19. Na4 {[%clk 0:01:37]}  Qd8 {[%clk 0:00:54]} 20. cxd6 {[%clk 0:01:33]}  Nxd6 {[%clk 0:00:54]} 21. Nd2 {[%clk 0:01:26]}  b6 {[%clk 0:00:52]} 22. f3 {[%clk 0:01:23]}  f5 {[%clk 0:00:52]} 23. Bg1 {[%clk 0:01:18]}  h5 {[%clk 0:00:52]} 24. Nb2 {[%clk 0:01:09]}  Qd7 {[%clk 0:00:43]} 25. Nbc4 {[%clk 0:01:08]}  b5 {[%clk 0:00:43]} 26. Nxd6 {[%clk 0:00:52]}  cxd6 {[%clk 0:00:43]} 27. b4 {[%clk 0:00:45]}  g5 {[%clk 0:00:41]} 28. Nb3 {[%clk 0:00:37]}  g4 {[%clk 0:00:38]} 29. hxg4 {[%clk 0:00:36]}  hxg4 {[%clk 0:00:33]} 30. fxg4 {[%clk 0:00:34]}  f4 {[%clk 0:00:34]} 31. Rxc8+ {[%clk 0:00:25]}  Rxc8 {[%clk 0:00:35]} 32. Rc1 {[%clk 0:00:24]}  Rf8 {[%clk 0:00:34]} 33. Rf1 {[%clk 0:00:19]}  Qxg4 {[%clk 0:00:32]} 34. Na5 {[%clk 0:00:12]}  Ng6 {[%clk 0:00:32]} 35. Nc6 {[%clk 0:00:02]}  f3+ {[%clk 0:00:28]} 36. Kf2 {[%clk 0:00:01]}  Bh6 {[%clk 0:00:25]} 0-1


[Site "https://www.chess.com"]

[Event "Titled Tuesday Blitz October 12 2021"]
[White "Iliaguev, Nisim"]
[Black "Visakh N R"]
[WhiteFideId "2817276"]
[BlackFideId "25012223"]
[WhiteElo "2107"]
[BlackElo "2454"]
[Result "0-1"]
[Round "02"]
[TimeControl "180+1"]
[Date "2021.10.12"]
[WhiteClock "0:01:59"]
[BlackClock "0:01:50"]

1. d4 {[%clk 0:02:59]}  Nf6 {[%clk 0:02:39]} 2. Nf3 {[%clk 0:03:00]}  d5 {[%clk 0:02:37]} 3. g3 {[%clk 0:03:01]}  g6 {[%clk 0:02:25]} 4. Bg2 {[%clk 0:03:01]}  Bg7 {[%clk 0:02:26]} 5. O-O {[%clk 0:03:02]}  O-O {[%clk 0:02:27]} 6. b3 {[%clk 0:03:03]}  c5 {[%clk 0:02:23]} 7. Bb2 {[%clk 0:03:03]}  cxd4 {[%clk 0:02:24]} 8. Nxd4 {[%clk 0:03:02]}  Nc6 {[%clk 0:02:24]} 9. Nxc6 {[%clk 0:03:02]}  bxc6 {[%clk 0:02:18]} 10. Nd2 {[%clk 0:03:03]}  a5 {[%clk 0:02:15]} 11. a4 {[%clk 0:03:02]}  Ba6 {[%clk 0:02:15]} 12. Re1 {[%clk 0:03:02]}  Qb6 {[%clk 0:02:11]} 13. e3 {[%clk 0:02:54]}  Rfd8 {[%clk 0:02:11]} 14. Nf3 {[%clk 0:02:53]}  Ne4 {[%clk 0:02:07]} 15. Bxg7 {[%clk 0:02:53]}  Kxg7 {[%clk 0:02:08]} 16. Qd4+ {[%clk 0:02:52]}  Qxd4 {[%clk 0:02:07]} 17. Nxd4 {[%clk 0:02:52]}  Rac8 {[%clk 0:02:04]} 18. Bxe4 {[%clk 0:02:46]}  dxe4 {[%clk 0:02:05]} 19. Rad1 {[%clk 0:02:46]}  e5 {[%clk 0:02:05]} 20. Nxc6 {[%clk 0:02:29]}  Rxd1 {[%clk 0:02:04]} 21. Rxd1 {[%clk 0:02:30]}  Rxc6 {[%clk 0:02:05]} 22. Rd2 {[%clk 0:02:30]}  Bc8 {[%clk 0:01:58]} 23. Kg2 {[%clk 0:02:28]}  Bg4 {[%clk 0:01:59]} 24. h3 {[%clk 0:02:28]}  Bf3+ {[%clk 0:01:59]} 25. Kh2 {[%clk 0:02:28]}  h5 {[%clk 0:01:53]} 26. g4 {[%clk 0:02:28]}  hxg4 {[%clk 0:01:52]} 27. hxg4 {[%clk 0:02:29]}  Bxg4 {[%clk 0:01:52]} 28. Kg3 {[%clk 0:02:30]}  Bf3 {[%clk 0:01:52]} 29. c4 {[%clk 0:02:24]}  g5 {[%clk 0:01:52]} 30. Rd5 {[%clk 0:02:22]}  Kf6 {[%clk 0:01:52]} 31. Rxa5 {[%clk 0:02:21]}  Kf5 {[%clk 0:01:52]} 32. Ra7 {[%clk 0:02:17]}  f6 {[%clk 0:01:50]} 33. a5 {[%clk 0:02:11]}  Rd6 {[%clk 0:01:50]} 34. a6 {[%clk 0:02:04]}  Rd1 {[%clk 0:01:50]} 35. Kh2 {[%clk 0:01:59]}  Rh1+ {[%clk 0:01:50]} 36. Kg3 {[%clk 0:01:59]}  g4 {[%clk 0:01:50]} 0-1


[Site "https://www.chess.com"]

[Event "Titled Tuesday Blitz October 12 2021"]
[White "Indjic, Aleksandar"]
[Black "Avramidou, Anastasia"]
[WhiteFideId "911925"]
[BlackFideId "4239873"]
[WhiteElo "2643"]
[BlackElo "2183"]
[Result "1-0"]
[Round "02"]
[TimeControl "180+1"]
[Date "2021.10.12"]
[WhiteClock "0:00:19"]
[BlackClock "0:00:04"]

1. e4 {[%clk 0:03:00]}  c6 {[%clk 0:02:59]} 2. Nf3 {[%clk 0:02:53]}  d5 {[%clk 0:03:00]} 3. Nc3 {[%clk 0:02:52]}  dxe4 {[%clk 0:02:56]} 4. Nxe4 {[%clk 0:02:53]}  Nf6 {[%clk 0:02:57]} 5. Qe2 {[%clk 0:02:53]}  Nxe4 {[%clk 0:02:55]} 6. Qxe4 {[%clk 0:02:53]}  Nd7 {[%clk 0:02:56]} 7. Bc4 {[%clk 0:02:49]}  Nf6 {[%clk 0:02:56]} 8. Ne5 {[%clk 0:02:49]}  e6 {[%clk 0:02:53]} 9. Qe2 {[%clk 0:02:49]}  Bd6 {[%clk 0:02:52]} 10. d4 {[%clk 0:02:48]}  h6 {[%clk 0:02:50]} 11. Bd2 {[%clk 0:02:40]}  Qc7 {[%clk 0:02:45]} 12. O-O-O {[%clk 0:02:39]}  Bd7 {[%clk 0:02:44]} 13. f4 {[%clk 0:02:35]}  Rf8 {[%clk 0:02:39]} 14. Kb1 {[%clk 0:02:33]}  O-O-O {[%clk 0:02:38]} 15. Rhe1 {[%clk 0:02:29]}  Kb8 {[%clk 0:02:37]} 16. Bb3 {[%clk 0:02:26]}  Bc8 {[%clk 0:02:37]} 17. g3 {[%clk 0:02:22]}  c5 {[%clk 0:01:57]} 18. Be3 {[%clk 0:02:18]}  Nd5 {[%clk 0:01:52]} 19. Bxd5 {[%clk 0:01:29]}  exd5 {[%clk 0:01:53]} 20. dxc5 {[%clk 0:01:29]}  Bxc5 {[%clk 0:01:52]} 21. Bxc5 {[%clk 0:01:30]}  Qxc5 {[%clk 0:01:52]} 22. Nd3 {[%clk 0:01:29]}  Qc7 {[%clk 0:01:52]} 23. Nb4 {[%clk 0:01:26]}  Be6 {[%clk 0:01:39]} 24. Qe5 {[%clk 0:01:25]}  a5 {[%clk 0:01:17]} 25. Nd3 {[%clk 0:01:16]}  Qxe5 {[%clk 0:01:16]} 26. Rxe5 {[%clk 0:01:15]}  Bg4 {[%clk 0:00:57]} 27. Rde1 {[%clk 0:01:14]}  g6 {[%clk 0:00:48]} 28. Kc1 {[%clk 0:01:12]}  b6 {[%clk 0:00:42]} 29. Kd2 {[%clk 0:01:10]}  Kc7 {[%clk 0:00:36]} 30. Re7+ {[%clk 0:01:06]}  Rd7 {[%clk 0:00:35]} 31. R7e5 {[%clk 0:00:45]}  Bf5 {[%clk 0:00:32]} 32. c3 {[%clk 0:00:45]}  Bxd3 {[%clk 0:00:31]} 33. Kxd3 {[%clk 0:00:44]}  f6 {[%clk 0:00:22]} 34. Re6 {[%clk 0:00:43]}  g5 {[%clk 0:00:21]} 35. f5 {[%clk 0:00:42]}  h5 {[%clk 0:00:18]} 36. h3 {[%clk 0:00:41]}  g4 {[%clk 0:00:16]} 37. h4 {[%clk 0:00:41]}  Rff7 {[%clk 0:00:14]} 38. Kd4 {[%clk 0:00:40]}  Kb7 {[%clk 0:00:14]} 39. b3 {[%clk 0:00:38]}  Kc7 {[%clk 0:00:15]} 40. Re8 {[%clk 0:00:38]}  Kb7 {[%clk 0:00:15]} 41. R1e6 {[%clk 0:00:37]}  Rh7 {[%clk 0:00:08]} 42. Rxf6 {[%clk 0:00:36]}  Kc7 {[%clk 0:00:08]} 43. Ree6 {[%clk 0:00:35]}  b5 {[%clk 0:00:07]} 44. Ra6 {[%clk 0:00:32]}  a4 {[%clk 0:00:05]} 45. Ra7+ {[%clk 0:00:32]}  Kb8 {[%clk 0:00:05]} 46. Rxd7 {[%clk 0:00:30]}  Rxd7 {[%clk 0:00:06]} 47. Rh6 {[%clk 0:00:30]}  axb3 {[%clk 0:00:06]} 48. axb3 {[%clk 0:00:28]}  b4 {[%clk 0:00:05]} 49. cxb4 {[%clk 0:00:27]}  Rb7 {[%clk 0:00:06]} 50. f6 {[%clk 0:00:20]}  Rxb4+ {[%clk 0:00:06]} 51. Kxd5 {[%clk 0:00:20]}  Kc7 {[%clk 0:00:04]} 52. f7 {[%clk 0:00:18]}  Rb8 {[%clk 0:00:04]} 53. Ke6 {[%clk 0:00:18]}  Rb6+ {[%clk 0:00:04]} 54. Ke7 {[%clk 0:00:18]}  Rxh6 {[%clk 0:00:03]} 55. f8=Q {[%clk 0:00:19]}  Rh7+ {[%clk 0:00:04]} 56. Kf6 {[%clk 0:00:19]} 1-0


[Site "https://www.chess.com"]